bitfinex-derivatives/quotes_SOLF0:USTF0_20250516
["timestamp","ask_amount","ask_price","bid_price","bid_amount"]
[1747395952762,5.7929,172.56,172.52,5.7938]
[1747395953066,5.7929,172.56,172.51,1.8349]
[1747395954570,5.7929,172.56,172.53,5.7937]
[1747395956263,5.7931,172.55,172.51,5.7943]
[1747395957376,5.7935,172.54,172.48,1.9862]
[1747395958273,5.7935,172.54,172.51,5.7941]
[1747395958675,6.79183991,172.6,172.48,1.9862]
[1747395959178,6.79183991,172.63,172.48,1.9862]
[1747395959579,6.79183991,172.63,172.55,5.7929]
[1747395959875,6.79183991,172.63,172.48,1.9862]
[1747395960371,6.79183991,172.63,172.54,5.7932]
[1747395960576,6.79183991,172.63,172.48,1.9862]
[1747395960776,5.7922,172.58,172.54,5.7933]
[1747395961379,5.7918,172.59,172.48,1.9862]
[1747395961773,6.79183991,172.63,172.48,1.9862]
[1747395962075,5.7915,172.6,172.5,6.79183991]
[1747395962878,5.7915,172.6,172.56,5.7924]
[1747395963678,5.7915,172.6,172.57,5.7923]
[1747395964478,6.79183991,172.63,172.58,5.7919]
[1747395964675,6.79183991,172.66,172.5,6.79183991]
[1747395964981,5.791,172.61,172.58,5.7917]
[1747395965481,5.7908,172.62,172.58,5.7917]
[1747395965783,5.7908,172.62,172.5,6.79183991]
[1747395965784,5.7908,172.62,172.59,5.7916]
[1747395966081,5.7904,172.63,172.5,6.79183991]
[1747395966379,6.79183991,172.66,172.5,6.79183991]
[1747395966579,6.79183991,172.69,172.59,5.7915]
[1747395969787,5.7899,172.65,172.57,1.8119]
[1747395970280,5.7901,172.64,172.57,1.8119]
[1747395970484,6.79183991,172.69,172.6,5.7911]
[1747395970986,5.7902,172.64,172.6,5.7911]
[1747395971185,6.79183991,172.69,172.57,1.8119]
[1747395971685,5.7909,172.62,172.58,5.7919]
[1747395972483,6.79183991,172.61,172.46,11.5916]
[1747395972683,6.79183991,172.61,172.47,1.8539]
[1747395973186,24.11183991,172.69,172.49,6.79183991]
[1747395973385,6.79183991,172.65,172.49,6.79183991]
[1747395973579,6.79183991,172.65,172.57,5.7921]
[1747395973987,5.7916,172.6,172.56,5.7924]
[1747395974481,5.7911,172.61,172.57,5.7921]
[1747395974684,6.79183991,172.65,172.49,6.79183991]
[1747395975083,5.7915,172.6,172.56,5.7924]
[1747395977383,5.7915,172.6,172.57,5.7922]
[1747395977788,5.7915,172.6,172.56,5.7925]
[1747395979082,5.7911,172.61,172.57,5.7922]
[1747395979385,6.79183991,172.69,172.52,6.79183991]
[1747395979786,5.7906,172.63,172.59,5.7914]
[1747395980087,6.79183991,172.69,172.59,5.7914]
[1747395980289,5.7909,172.62,172.59,5.7914]
[1747395980988,5.7904,172.63,172.52,6.79183991]
[1747395981185,28.8957,172.71,172.55,6.79183991]
[1747395981186,17.32,172.71,172.55,6.79183991]
[1747395981488,6.79183991,172.74,172.58,6.79183991]
[1747395982188,5.7888,172.68,172.64,5.79]
[1747395982684,5.7888,172.68,172.65,5.7896]
[1747395982895,6.79183991,172.74,172.58,6.79183991]
[1747395983388,5.7882,172.7,172.66,5.7893]
[1747395986790,5.7882,172.7,172.58,6.79183991]
[1747395986791,5.7884,172.69,172.65,5.7895]
[1747395987093,5.7884,172.69,172.58,6.79183991]
[1747395987393,5.7881,172.7,172.66,5.7893]
[1747395988293,5.7881,172.7,172.67,5.7889]
[1747395988595,5.7881,172.7,172.58,6.79183991]
[1747395988893,5.7881,172.7,172.66,5.7892]
[1747395989699,5.7877,172.71,172.67,5.7889]
[1747395989889,6.79183991,172.74,172.58,6.79183991]
[1747395990797,5.7883,172.69,172.65,5.7894]
[1747395991702,5.7883,172.69,172.58,6.79183991]
[1747395991703,5.7883,172.69,172.66,5.7893]
[1747395992500,5.7881,172.7,172.66,5.7893]
[1747395992799,6.79183991,172.74,172.58,6.79183991]
[1747395992998,6.79183991,172.68,172.56,5.6266]
[1747395994003,6.79183991,172.71,172.63,5.7903]
[1747395994993,5.7893,172.66,172.63,5.7903]
[1747395995396,5.7893,172.66,172.62,5.7905]
[1747395997100,5.7889,172.68,172.56,12.41843991]
[1747395997307,6.79183991,172.71,172.56,12.41843991]
[1747395998203,6.79183991,172.71,172.62,5.7906]
[1747395999406,6.79183991,172.71,172.61,5.7909]
[1747395999806,5.7898,172.65,172.61,5.7909]
[1747396000609,6.79183991,172.71,172.56,12.41843991]
[1747396000610,6.79183991,172.71,172.6,5.7911]
[1747396000912,6.79183991,172.68,172.56,5.6266]
[1747396001309,5.7905,172.63,172.59,5.7914]
[1747396001508,6.79183991,172.68,172.56,5.6266]
[1747396001809,5.7903,172.64,172.6,5.7911]
[1747396002608,5.7898,172.65,172.56,5.6266]
[1747396002810,6.79183991,172.68,172.56,5.6266]
[1747396003005,5.7895,172.66,172.62,5.7905]
[1747396003503,5.7897,172.65,172.62,5.7905]
[1747396005011,5.7897,172.65,172.56,5.6266]
[1747396005012,5.79,172.64,172.61,5.7909]
[1747396005310,6.79183991,172.68,172.61,5.7909]
[1747396005515,6.79183991,172.68,172.6,5.7912]
[1747396006010,5.7902,172.64,172.6,5.7912]
[1747396006814,5.7898,172.65,172.56,5.6266]
[1747396007205,6.79183991,172.68,172.56,5.6266]
[1747396008112,5.7898,172.65,172.62,5.7905]
[1747396008914,5.7898,172.65,172.61,5.7909]
[1747396009113,5.79,172.64,172.61,5.7909]
[1747396009415,6.79183991,172.68,172.56,5.6266]
[1747396009606,6.79183991,172.68,172.6,5.7912]
[1747396009808,5.7902,172.64,172.6,5.7912]
[1747396011216,5.7904,172.63,172.6,5.7912]
[1747396012215,5.7901,172.64,172.6,5.7912]
[1747396012616,5.7901,172.64,172.61,5.791]
[1747396012815,5.7898,172.65,172.61,5.791]
[1747396013315,5.79,172.64,172.61,5.791]
[1747396013815,5.7897,172.65,172.61,5.791]
[1747396014316,5.79,172.64,172.61,5.791]
[1747396014618,6.79183991,172.68,172.62,5.7907]
[1747396014815,6.79183991,172.71,172.56,12.41843991]
[1747396015016,5.7895,172.66,172.56,12.41843991]
[1747396015315,6.79183991,172.74,172.59,6.79183991]
[1747396015516,5.7885,172.69,172.59,6.79183991]
[1747396015717,5.7885,172.69,172.66,5.7891]
[1747396015917,6.79183991,172.74,172.59,6.79183991]
[1747396016114,5.7885,172.69,172.59,6.79183991]
[1747396016316,6.79183991,172.74,172.59,6.79183991]
[1747396016509,5.7885,172.69,172.59,6.79183991]
[1747396016818,6.79183991,172.74,172.65,5.7895]
[1747396017116,5.7888,172.68,172.65,5.7895]
[1747396019315,5.7888,172.68,172.59,6.79183991]
[1747396019518,5.7888,172.68,172.66,5.7893]
[1747396020016,5.7884,172.69,172.66,5.7893]
[1747396020218,6.79183991,172.74,172.65,5.7895]
[1747396020417,5.7885,172.69,172.59,6.79183991]
[1747396020617,5.7885,172.69,172.65,5.7894]
[1747396022419,6.79183991,172.74,172.59,6.79183991]
[1747396022613,6.79183991,172.74,172.64,5.79]
[1747396022922,5.789,172.68,172.64,5.79]
[1747396024024,5.789,172.67,172.64,5.79]
[1747396024723,5.7888,172.68,172.65,5.7895]
[1747396024918,6.79183991,172.74,172.59,6.79183991]
[1747396025422,5.7881,172.7,172.59,6.79183991]
[1747396025825,5.7883,172.69,172.66,5.7891]
[1747396026121,6.79183991,172.74,172.66,5.7891]
[1747396026325,5.7885,172.69,172.66,5.7893]
[1747396026514,6.79183991,172.74,172.59,6.79183991]
[1747396027020,5.7887,172.68,172.59,6.79183991]
[1747396027227,6.79183991,172.74,172.59,6.79183991]
[1747396027828,5.7885,172.69,172.65,5.7894]
[1747396028229,6.79183991,172.74,172.65,5.7894]
[1747396029525,5.7886,172.69,172.65,5.7894]
[1747396029730,6.79183991,172.71,172.65,5.7894]
[1747396029927,6.79183991,172.68,172.56,5.6266]
[1747396030326,6.79183991,172.68,172.59,5.7916]
[1747396032030,5.7905,172.63,172.59,5.7916]
[1747396032832,5.7905,172.63,172.56,5.6266]
[1747396033225,5.7905,172.63,172.59,5.7915]
[1747396033422,5.7905,172.63,172.56,5.6266]
[1747396033732,5.7905,172.63,172.59,5.7915]
[1747396034633,5.7905,172.63,172.6,5.7913]
[1747396034936,5.7907,172.62,172.56,5.6266]
[1747396035334,6.79183991,172.68,172.59,5.7914]
[1747396035634,5.7904,172.63,172.59,5.7914]
[1747396037028,5.7904,172.63,172.6,5.7912]
[1747396037434,5.7901,172.64,172.56,5.6266]
[1747396037634,6.79183991,172.68,172.61,5.7907]
[1747396037937,6.79183991,172.68,172.56,5.6266]
[1747396038139,6.79183991,172.71,172.56,5.6266]
[1747396038642,5.7894,172.66,172.62,5.7904]
[1747396039538,206.69071725,172.75,172.6,6.79183991]
[1747396039743,206.69071725,172.75,172.63,6.79183991]
[1747396039941,5.7866,172.74,172.7,5.7879]
[1747396040241,206.69071725,172.75,172.66,6.79183991]
[1747396040642,206.69071725,172.75,172.72,5.787]
[1747396041140,5.7852,172.79,172.75,5.7863]
[1747396041339,6.79183991,172.84,172.69,6.79183991]
[1747396041742,5.7862,172.76,172.71,5.7876]
[1747396042142,5.7862,172.76,172.72,5.7871]
[1747396042749,5.7857,172.77,172.73,5.7869]
[1747396043239,5.7854,172.78,172.73,5.7869]
[1747396043447,5.7854,172.78,172.74,5.7866]
[1747396047048,5.7848,172.8,172.75,5.786]
[1747396047249,6.79183991,172.84,172.75,5.786]
[1747396047749,6.79183991,172.84,172.69,6.79183991]
[1747396048050,6.79183991,172.84,172.64,5.606]
[1747396048051,6.79183991,172.87,172.72,6.79183991]
[1747396048241,5.7835,172.84,172.73,5.6853]
[1747396048443,5.7835,172.84,172.79,5.7847]
[1747396048638,6.79183991,172.87,172.73,5.6853]
[1747396048849,5.784,172.82,172.77,5.7853]
[1747396049050,5.784,172.82,172.73,5.6853]
[1747396049253,6.79183991,172.87,172.73,5.6853]
[1747396049749,5.784,172.82,172.77,5.7856]
[1747396049948,5.784,172.82,172.73,5.6853]
[1747396051050,6.79183991,172.87,172.73,5.6853]
[1747396051350,5.7846,172.81,172.76,5.7857]
[1747396052553,5.7846,172.81,172.77,5.7856]
[1747396053254,5.7838,172.83,172.73,5.6853]
[1747396053954,5.7838,172.83,172.79,5.7848]
[1747396054155,5.784,172.82,172.79,5.7848]
[1747396054358,6.79183991,172.85,172.79,5.7848]
[1747396054657,5.7838,172.83,172.8,5.7846]
[1747396055447,6.79183991,172.88,172.73,5.6853]
[1747396055759,6.79183991,172.88,172.75,6.79183991]
[1747396056156,5.7832,172.85,172.75,6.79183991]
[1747396057860,5.7832,172.85,172.81,5.7841]
[1747396058160,5.7832,172.85,172.75,6.79183991]
[1747396058661,5.7833,172.84,172.75,6.79183991]
[1747396059062,6.79183991,172.94,172.78,6.79183991]
[1747396059257,5.782,172.88,172.78,6.79183991]
[1747396059463,5.782,172.88,172.85,5.7827]
[1747396059957,5.7817,172.89,172.78,6.79183991]
[1747396060162,5.7817,172.89,172.86,5.7826]
[1747396061560,5.7817,172.89,172.85,5.7828]
[1747396061958,5.782,172.88,172.85,5.7828]
[1747396062151,6.79183991,172.94,172.84,5.7832]
[1747396062562,5.7814,172.9,172.85,5.7827]
[1747396062763,5.7814,172.9,172.78,6.79183991]
[1747396063268,5.7814,172.9,172.85,5.7827]
[1747396063468,6.79183991,172.94,172.78,6.79183991]
[1747396064159,6.79183991,172.94,172.84,5.7831]
[1747396064359,6.79183991,172.92,172.84,5.7831]
[1747396064559,5.7819,172.89,172.85,5.7829]
[1747396064864,6.79183991,172.92,172.78,6.79183991]
[1747396065670,17.3346,173.0,172.81,6.79183991]
[1747396065671,6.79183991,172.95,172.81,6.79183991]
[1747396065966,6.79183991,172.95,172.82,5.6434]
[1747396066169,5.7812,172.91,172.87,5.7822]
[1747396066863,5.7807,172.92,172.82,5.6434]
[1747396067767,5.7807,172.92,172.88,5.7818]
[1747396068168,6.79183991,172.95,172.82,5.6434]
[1747396069569,5.7807,172.92,172.88,5.7817]
[1747396071073,6.79183991,172.95,172.88,5.7817]
[1747396071873,6.79183991,172.95,172.82,5.6434]
[1747396072869,5.7812,172.91,172.87,5.7822]
[1747396073375,6.79183991,172.95,172.87,5.7822]
[1747396073873,6.79183991,172.95,172.82,5.6434]
[1747396074572,6.79183991,172.95,172.85,5.7829]
[1747396074773,5.782,172.88,172.82,5.6434]
[1747396075276,5.7818,172.89,172.85,5.7829]
[1747396075469,6.79183991,172.95,172.82,5.6434]
[1747396075677,6.79183991,172.92,172.82,3.8048]
[1747396075975,6.79183991,172.92,172.82,9.5885]
[1747396077077,5.7828,172.86,172.83,5.7836]
[1747396077277,6.79183991,172.92,172.83,5.7836]
[1747396077574,5.7825,172.87,172.83,5.7836]
[1747396077772,6.79183991,172.92,172.82,3.8048]
[1747396078175,5.7818,172.89,172.82,3.8048]
[1747396078877,6.79183991,172.92,172.82,3.8048]
[1747396079365,6.79183991,172.92,172.85,5.7828]
[1747396079571,5.7819,172.89,172.85,5.7828]
[1747396080280,5.7813,172.9,172.86,5.7826]
[1747396080877,6.79183991,172.92,172.82,3.8048]
[1747396081082,5.7818,172.89,172.82,3.8048]
[1747396081478,6.79183991,172.92,172.82,3.8048]
[1747396081666,5.7821,172.88,172.84,5.7831]
[1747396082175,6.79183991,172.92,172.83,5.7835]
[1747396082476,6.79183991,172.92,172.82,3.8048]
[1747396082675,5.7821,172.88,172.82,3.8048]
[1747396082978,5.7821,172.88,172.84,5.7831]
[1747396083179,6.79183991,172.96,172.82,3.8048]
[1747396083473,5.7805,172.93,172.89,5.7814]
[1747396083672,6.79183991,172.96,172.89,5.7814]
[1747396084072,5.78,172.94,172.89,5.7814]
[1747396084381,5.78,172.94,172.9,5.7811]
[1747396086776,5.78,172.94,172.91,5.7809]
[1747396086974,5.7797,172.95,172.91,5.7809]
[1747396087277,6.79183991,172.96,172.91,5.7809]
[1747396087471,6.79183991,172.96,172.82,3.8048]
[1747396087670,6.79183991,172.96,172.9,5.7811]
[1747396087877,6.79183991,172.96,172.82,3.8048]
[1747396088078,5.7803,172.93,172.89,5.7814]
[1747396088677,5.7803,172.93,172.9,5.7812]
[1747396089084,5.7803,172.93,172.82,3.8048]
[1747396089085,5.7806,172.92,172.82,3.8048]
[1747396089269,6.79183991,172.96,172.88,5.7818]
[1747396089475,6.79183991,172.96,172.82,3.8048]
[1747396089783,5.7808,172.92,172.88,5.7819]
[1747396090585,5.7811,172.91,172.87,5.7821]
[1747396091083,5.7811,172.91,172.82,3.8048]
[1747396091578,5.7808,172.92,172.82,3.8048]
[1747396092181,5.7808,172.92,172.88,5.7818]
[1747396093378,6.79183991,172.93,172.82,3.8048]
[1747396093884,5.7822,172.88,172.83,5.7834]
[1747396094684,5.7822,172.88,172.84,5.7833]
[1747396095179,5.7823,172.87,172.84,5.7833]
[1747396095387,6.79183991,172.93,172.82,3.8048]
[1747396097481,5.7818,172.89,172.85,5.7828]
[1747396097878,18.35043991,172.96,172.82,3.8048]
[1747396098079,5.7825,172.87,172.83,5.7835]
[1747396098482,6.79183991,172.92,172.82,3.8048]
[1747396098688,5.7829,172.86,172.82,9.5888]
[1747396098984,5.7829,172.86,172.82,3.8048]
[1747396100787,5.7829,172.86,172.82,9.5887]
[1747396101388,5.783,172.85,172.82,3.8048]
[1747396102086,5.7829,172.86,172.82,9.5887]
[1747396102286,6.79183991,172.92,172.82,3.8048]
[1747396102989,5.783,172.85,172.82,3.8048]
[1747396106390,5.7836,172.83,172.77,1.9886]
[1747396106593,6.79183991,172.89,172.77,1.9886]
[1747396106892,6.79183991,172.91,172.77,1.9886]
[1747396107093,6.79183991,172.91,172.78,1.9267]
[1747396107591,5.7824,172.87,172.83,5.7836]
[1747396108693,5.7821,172.88,172.84,5.7831]
[1747396108992,5.7821,172.88,172.78,1.9267]
[1747396109697,5.7817,172.89,172.85,5.7829]
[1747396109896,6.79183991,172.94,172.79,6.79183991]
[1747396110392,5.7812,172.91,172.79,6.79183991]
[1747396110583,6.79183991,172.94,172.79,6.79183991]
[1747396110788,5.7813,172.9,172.86,5.7824]
[1747396111191,6.79183991,172.94,172.79,6.79183991]
[1747396112695,6.79183991,172.97,172.82,6.79183991]
[1747396112890,5.7807,172.92,172.88,5.7817]
[1747396113784,6.79183991,172.94,172.85,1.8076]
[1747396114796,6.79183991,172.94,172.85,7.5905]
[1747396115296,5.7817,172.89,172.85,7.5905]
[1747396119100,6.79183991,172.94,172.83,1.9732]
[1747396119299,6.79183991,172.91,172.8,3.7673]
[1747396119595,6.79183991,172.88,172.8,1.9193]
[1747396119796,6.79183991,172.88,172.77,1.866]
[1747396120293,5.7838,172.83,172.79,5.7849]
[1747396120698,5.784,172.82,172.78,5.7852]
[1747396122093,6.79183991,172.85,172.77,1.866]
[1747396123901,5.7845,172.81,172.77,1.866]
[1747396124994,5.7845,172.81,172.77,7.6516]
[1747396125194,6.79183991,172.89,172.77,1.866]
[1747396126697,6.79183991,172.89,172.81,5.7842]
[1747396126893,6.79183991,172.89,172.77,1.866]
[1747396127286,5.7827,172.86,172.77,1.866]
[1747396127802,6.79183991,172.92,172.77,1.866]
[1747396128901,5.7829,172.86,172.81,5.7842]
[1747396129102,6.79183991,172.92,172.81,5.7842]
[1747396129801,6.79183991,172.92,172.82,5.7837]
[1747396130003,6.79183991,172.92,172.77,1.866]
[1747396130409,5.7825,172.87,172.77,1.866]
[1747396131298,5.7825,172.87,172.83,5.7834]
[1747396131490,6.79183991,172.92,172.79,6.79183991]
[1747396131695,6.79183991,172.95,172.79,6.79183991]
[1747396132397,5.7816,172.89,172.86,5.7826]
[1747396132602,6.79183991,172.95,172.79,6.79183991]
[1747396132901,6.79183991,172.92,172.77,1.866]
[1747396133297,6.79183991,172.89,172.77,1.866]
[1747396133605,6.79183991,172.89,172.79,5.7849]
[1747396135704,6.79183991,172.89,172.8,5.7846]
[1747396136002,5.7833,172.85,172.8,5.7846]
[1747396136805,5.7833,172.85,172.81,5.7843]
[1747396137506,5.7826,172.87,172.77,1.866]
[1747396137807,6.79183991,172.92,172.79,6.79183991]
[1747396138005,5.7816,172.9,172.85,5.7828]
[1747396138611,5.7816,172.89,172.85,5.7828]
[1747396138906,6.79183991,172.92,172.79,6.79183991]
[1747396139105,6.79183991,172.92,172.77,1.866]
[1747396139709,5.7818,172.89,172.77,1.866]
[1747396139900,5.7818,172.89,172.84,5.783]
[1747396140208,6.79183991,172.92,172.84,5.783]
[1747396140907,5.7821,172.88,172.84,5.783]
[1747396141406,5.7817,172.89,172.85,5.7829]
[1747396141809,5.7817,172.89,172.77,1.866]
[1747396142104,5.7821,172.88,172.84,5.7831]
[1747396143403,6.79183991,172.92,172.77,1.866]
[1747396144208,5.7828,172.86,172.77,1.866]
[1747396144609,6.79183991,172.92,172.77,1.866]
[1747396144907,6.79183991,172.92,172.82,5.7839]
[1747396145413,5.7828,172.86,172.82,5.7839]
[1747396146105,6.79183991,172.92,172.8,5.7844]
[1747396146309,6.79183991,172.89,172.8,5.7844]
[1747396146612,5.7822,172.88,172.83,5.7834]
[1747396146807,6.79183991,172.92,172.83,5.7834]
[1747396147105,5.7814,172.9,172.86,5.7826]
[1747396147309,235.3430642,172.99,172.82,6.79183991]
[1747396147610,5.7802,172.94,172.89,5.7816]
[1747396148002,242.13490411,172.99,172.85,6.79183991]
[1747396148203,5.7796,172.95,172.85,6.79183991]
[1747396148710,5.7801,172.94,172.89,5.7814]
[1747396149404,242.13490411,172.99,172.89,5.7814]
[1747396150209,5.7801,172.94,172.89,5.7814]
[1747396151512,6.79183991,172.96,172.84,1.8694]
[1747396152008,6.79183991,172.96,172.86,5.7823]
[1747396152209,6.79183991,172.96,172.84,1.8694]
[1747396152510,5.7804,172.93,172.88,5.7818]
[1747396152705,5.7804,172.93,172.84,1.8694]
[1747396152914,6.79183991,172.96,172.84,1.8694]
[1747396153111,5.7799,172.95,172.9,5.781]
[1747396153306,6.79183991,172.96,172.9,5.781]
[1747396153509,242.13490411,172.99,172.85,6.79183991]
[1747396153710,5.7799,172.95,172.85,6.79183991]
[1747396155107,5.78,172.94,172.85,6.79183991]
[1747396156315,242.13490411,172.99,172.92,5.7804]
[1747396156616,242.13490411,172.99,172.85,6.79183991]
[1747396156812,5.7802,172.94,172.9,5.7809]
[1747396157008,242.13490411,172.99,172.85,6.79183991]
[1747396157314,5.78,172.94,172.91,5.7808]
[1747396157706,235.3430642,172.99,172.91,5.7808]
[1747396157903,5.7803,172.93,172.91,5.7808]
[1747396158116,5.7803,172.93,172.9,5.7811]
[1747396158816,235.3430642,172.99,172.91,5.7809]
[1747396158817,5.7801,172.94,172.91,5.7809]
[1747396159003,235.3430642,172.99,172.91,5.7809]
[1747396159420,235.3430642,172.99,172.9,5.7812]
[1747396160106,5.7798,172.95,172.91,5.7809]
[1747396161011,235.3430642,172.99,172.85,6.79183991]
[1747396161012,235.3430642,172.99,172.92,5.7805]
[1747396161212,235.3430642,172.99,172.85,6.79183991]
[1747396161213,235.3430642,172.99,172.85,18.35763991]
[1747396161417,235.3430642,172.99,172.88,6.79183991]
[1747396162319,235.3430642,172.99,172.93,5.78]
[1747396162519,235.3430642,172.99,172.88,6.79183991]
[1747396162915,5.7791,172.97,172.93,5.7801]
[1747396163120,235.3430642,172.99,172.88,6.79183991]
[1747396163819,5.7789,172.98,172.94,5.7797]
[1747396164020,5.7789,172.98,172.88,6.79183991]
[1747396164622,5.7789,172.98,172.94,5.7796]
[1747396164815,5.779,172.97,172.94,5.7796]
[1747396165014,235.3430642,172.99,172.88,6.79183991]
[1747396165210,235.3430642,172.99,172.95,5.7794]
[1747396165916,241.1215642,172.99,172.95,5.7794]
[1747396166121,241.1215642,172.99,172.96,5.7793]
[1747396167520,235.3430642,172.99,172.97,5.7789]
[1747396167823,235.3430642,172.99,172.88,6.79183991]
[1747396168122,241.1215642,172.99,172.96,5.7792]
[1747396168324,235.3430642,172.99,172.88,6.79183991]
[1747396168519,235.3430642,172.99,172.91,6.79183991]
[1747396168721,235.3430642,172.99,172.97,5.7788]
[1747396169125,5.7778,173.01,172.98,5.7784]
[1747396169319,17.39,173.12,172.93,11.5606]
[1747396169524,6.79183991,173.1,172.94,6.79183991]
[1747396169926,6.79183991,173.1,173.01,5.7774]
[1747396170126,6.79183991,173.1,172.94,6.79183991]
[1747396170426,5.7765,173.05,173.01,5.7774]
[1747396170819,6.79183991,173.1,172.94,6.79183991]
[1747396171021,5.7772,173.03,172.94,6.79183991]
[1747396171326,6.79183991,173.07,172.94,6.79183991]
[1747396172124,6.79183991,173.07,172.98,5.7785]
[1747396172720,5.7773,173.02,172.98,5.7785]
[1747396174026,5.7769,173.04,172.99,5.7781]
[1747396174330,6.79183991,173.07,172.94,6.79183991]
[1747396174629,5.777,173.03,172.99,5.7782]
[1747396175128,6.79183991,173.07,172.94,6.79183991]
[1747396175333,6.79183991,173.1,172.94,6.79183991]
[1747396175627,6.79183991,173.07,172.94,6.79183991]
[1747396176230,5.7775,173.02,172.98,5.7786]
[1747396177933,5.7771,173.03,172.98,5.7786]
[1747396178133,6.79183991,173.07,172.97,5.7788]
[1747396179529,5.7775,173.02,172.97,5.7788]
[1747396179729,6.79183991,173.07,172.96,5.7791]
[1747396180033,5.7778,173.01,172.94,6.79183991]
[1747396180233,6.79183991,173.07,172.98,5.7786]
[1747396180423,6.79183991,173.09,172.98,5.7786]
[1747396180627,6.79183991,173.09,172.94,6.79183991]
[1747396180933,6.79183991,173.09,172.96,5.7791]
[1747396181636,5.778,173.0,172.96,5.7791]
[1747396181934,6.79183991,173.06,172.95,5.7795]
[1747396182233,5.7781,173.0,172.95,5.7795]
[1747396182937,5.7781,173.0,172.96,5.7792]
[1747396183536,5.7777,173.01,172.96,5.7792]
[1747396183731,6.79183991,173.06,172.97,5.7789]
[1747396184635,5.7776,173.01,172.97,5.7789]
[1747396184829,5.7776,173.01,172.96,5.7791]
[1747396185029,6.79183991,173.06,172.92,5.6024]
[1747396185230,6.79183991,173.06,172.94,5.7798]
[1747396185428,6.79183991,173.06,172.92,5.6024]
[1747396185741,6.79183991,173.03,172.92,5.6024]
[1747396186040,6.79183991,173.03,172.93,5.7801]
[1747396186337,5.7789,172.98,172.94,5.7799]
[1747396186838,5.7789,172.98,172.92,5.6024]
[1747396187137,6.79183991,173.03,172.93,5.7801]
[1747396187638,5.7788,172.98,172.93,5.7801]
[1747396188139,5.7788,172.98,172.94,5.7799]
[1747396189039,5.7784,172.99,172.94,5.7799]
[1747396189336,6.79183991,173.03,172.94,5.7799]
[1747396189536,5.7785,172.99,172.94,5.7799]
[1747396189938,6.79183991,173.03,172.94,5.7799]
[1747396190832,5.7786,172.98,172.94,5.7799]
[1747396194040,5.7784,172.99,172.95,5.7796]
[1747396194246,6.79183991,173.06,172.92,5.6024]
[1747396194741,5.7777,173.01,172.92,5.6024]
[1747396195133,5.7777,173.01,172.97,5.7787]
[1747396195541,5.778,173.0,172.97,5.7787]
[1747396195842,5.778,173.0,172.96,5.7791]
[1747396198844,5.778,173.0,172.97,5.7788]
[1747396199246,5.7778,173.01,172.97,5.7788]
[1747396199741,5.778,173.0,172.97,5.7788]
[1747396200046,6.79183991,173.06,172.97,5.7788]
[1747396201249,6.79183991,173.06,172.98,5.7786]
[1747396201549,6.79183991,173.06,172.94,6.79183991]
[1747396201850,5.7775,173.02,172.97,5.7787]
[1747396202546,5.7777,173.01,172.96,5.7792]
[1747396203347,5.778,173.0,172.96,5.7792]
[1747396203744,11.5493,173.1,172.92,5.6024]
[1747396203941,18.34113991,173.1,172.94,6.79183991]
[1747396204552,5.7772,173.03,172.99,5.7782]
[1747396205649,18.34113991,173.1,173.0,5.7779]
[1747396205859,18.34113991,173.1,172.94,6.79183991]
[1747396206154,18.34113991,173.1,172.95,6.79183991]
[1747396206952,5.7773,173.03,172.95,6.79183991]
[1747396207255,18.34113991,173.1,172.95,6.79183991]
[1747396207557,18.34113991,173.1,172.98,5.7784]
[1747396207955,18.34113991,173.1,172.95,6.79183991]
[1747396208148,18.34113991,173.1,173.0,5.7778]
[1747396208345,18.34113991,173.1,172.95,6.79183991]
[1747396208552,6.79183991,173.1,172.95,6.79183991]
[1747396208753,6.79183991,173.13,172.98,6.79183991]
[1747396208949,1.05122627,173.12,172.99,5.5467]
[1747396209255,5.7759,173.07,173.02,5.7771]
[1747396210357,5.7761,173.06,173.01,5.7775]
[1747396210559,6.79183991,173.13,173.01,5.7775]
[1747396211157,1.05123205,173.12,173.0,5.7779]